{"text_format":"3","workbook":"xlsx","n_sheets":4,"sheets":["Začátek","Svatební rozpočet","Oblečení-Hostina-Hudba-Fotky","Výzdoba-Květiny-Dárky-Cestování"],"not_rendered":{"charts":1,"defined_names":22},"read":"whole","date_system":"1900"}

{"sheet":"Začátek","index":0,"n_rows":7,"n_cols":2,"rows_kept":7}
[null,"INFORMACE O TÉTO ŠABLONĚ"]
[null,"Pomocí této šablony můžete sledovat výdaje na svatbu."]
[null,"Na samostatných listech zadejte odhadované a skutečné náklady v různých kategoriích."]
[null,"Shrnutí svatebního rozpočtu a graf se aktualizují automaticky."]
[null,"Poznámka: "]
[null,"Další pokyny jsou k dispozici ve sloupci A na každém listu. Tento text je záměrně skrytý. Pokud ho chcete odebrat, vyberte sloupec A a stiskněte klávesu DELETE. Pokud tento text chcete zobrazit, vyberte sloupec A a změňte barvu písma."]
[null,"Další informace o tabulkách můžete získat tak, že v tabulce stisknete klávesu SHIFT a potom F10, vyberete možnost TABULKA a pak vyberete ALTERNATIVNÍ TEXT."]

{"sheet":"Svatební rozpočet","index":1,"n_rows":19,"n_cols":6,"rows_kept":19,"merged":[[2,2,4,5],[18,2,42,5]]}
["Na tomto listu můžete vytvořit svatební rozpočet. Když zadáte podrobnosti do tabulek na listech Oblečení-Hostina-Hudba-Fotky a Výzdoba-Květiny-Dárky-Cestování, tak se na aktuálním listu zaktualizuje shrnutí a graf. V buňkách v tomto sloupci jsou užitečné pokyny k tomu, jak tento list používat. V buňce C1 je popisek Datum svatby.",null,"Datum svatby:"]
["Do buňky C2 zadejte datum svatby. V buňce E2 se automaticky počítá zbývající dny.",null,{"$f":"TODAY()+365","v":"2019-12-03"},"Zbývající dny:",{"$f":"C2-TODAY()","v":365}]
["V buňce C3 je název tohoto listu. Další pokyn je v buňce A6.",null,"Shrnutí svatebního rozpočtu"]
[]
[]
["Tabulka se shrnutí rozpočtu, která začíná v buňce C6, se aktualizuje automaticky. Další pokyn je v buňce A19.",null,"KATEGORIE","PŘEDPOKLAD","SKUTEČNOST","PŘEKROČENÍ/REZERVA"]
[null,null,"Oblečení",{"$f":"Oblečení_celkem_předpoklad","v":{"v":9490,"d":"9,490.00"}},{"$f":"Oblečení_celkem_skutečnost","v":{"v":9770,"d":"9,770.00"}},{"$f":"ShrnutíRozpočtu[[#This Row],[PŘEDPOKLAD]]-ShrnutíRozpočtu[[#This Row],[SKUTEČNOST]]","v":{"v":-280,"d":"-280.00"}}]
[null,null,"Hostina",{"$f":"Hostina_celkem_předpoklad","v":{"v":1050,"d":"1,050.00"}},{"$f":"Hostina_celkem_skutečnost","v":{"v":928,"d":"928.00"}},{"$f":"ShrnutíRozpočtu[[#This Row],[PŘEDPOKLAD]]-ShrnutíRozpočtu[[#This Row],[SKUTEČNOST]]","v":{"v":122,"d":"122.00"}}]
[null,null,"Hudba",{"$f":"Hudba_zábava_celkem_předpoklad","v":{"v":600,"d":"600.00"}},{"$f":"Hudba_zábava_celkem_skutečnost","v":{"v":400,"d":"400.00"}},{"$f":"ShrnutíRozpočtu[[#This Row],[PŘEDPOKLAD]]-ShrnutíRozpočtu[[#This Row],[SKUTEČNOST]]","v":{"v":200,"d":"200.00"}}]
[null,null,"Tisk",{"$f":"Tisk_papírnictví_celkem_předpoklad","v":{"v":935,"d":"935.00"}},{"$f":"Tisk_papírnictví_celkem_skutečnost","v":{"v":870,"d":"870.00"}},{"$f":"ShrnutíRozpočtu[[#This Row],[PŘEDPOKLAD]]-ShrnutíRozpočtu[[#This Row],[SKUTEČNOST]]","v":{"v":65,"d":"65.00"}}]
[null,null,"Fotky",{"$f":"Fotky_celkem_předpoklad","v":{"v":1625,"d":"1,625.00"}},{"$f":"Fotky_celkem_skutečnost","v":{"v":1575,"d":"1,575.00"}},{"$f":"ShrnutíRozpočtu[[#This Row],[PŘEDPOKLAD]]-ShrnutíRozpočtu[[#This Row],[SKUTEČNOST]]","v":{"v":50,"d":"50.00"}}]
[null,null,"Výzdoba",{"$f":"Výzdoba_celkem_předpoklad","v":{"v":700,"d":"700.00"}},{"$f":"Výzdoba_celkem_skutečnost","v":{"v":720,"d":"720.00"}},{"$f":"ShrnutíRozpočtu[[#This Row],[PŘEDPOKLAD]]-ShrnutíRozpočtu[[#This Row],[SKUTEČNOST]]","v":{"v":-20,"d":"-20.00"}}]
[null,null,"Květiny",{"$f":"Květiny_celkem_předpoklad","v":{"v":900,"d":"900.00"}},{"$f":"Květiny_celkem_skutečnost","v":{"v":850,"d":"850.00"}},{"$f":"ShrnutíRozpočtu[[#This Row],[PŘEDPOKLAD]]-ShrnutíRozpočtu[[#This Row],[SKUTEČNOST]]","v":{"v":50,"d":"50.00"}}]
[null,null,"Dárky",{"$f":"Dárky_celkem_předpoklad","v":{"v":1345,"d":"1,345.00"}},{"$f":"Dárky_celkem_skutečnost","v":{"v":1075,"d":"1,075.00"}},{"$f":"ShrnutíRozpočtu[[#This Row],[PŘEDPOKLAD]]-ShrnutíRozpočtu[[#This Row],[SKUTEČNOST]]","v":{"v":270,"d":"270.00"}}]
[null,null,"Cestování",{"$f":"Cestování_doprava_celkem_předpoklad","v":{"v":100,"d":"100.00"}},{"$f":"Cestování_doprava_celkem_skutečnost","v":{"v":165,"d":"165.00"}},{"$f":"ShrnutíRozpočtu[[#This Row],[PŘEDPOKLAD]]-ShrnutíRozpočtu[[#This Row],[SKUTEČNOST]]","v":{"v":-65,"d":"-65.00"}}]
[null,null,"Jiné",{"$f":"Jiné_výdaje_celkem_předpoklad","v":{"v":885,"d":"885.00"}},{"$f":"Jiné_výdaje_celkem_skutečnost","v":{"v":1021,"d":"1,021.00"}},{"$f":"ShrnutíRozpočtu[[#This Row],[PŘEDPOKLAD]]-ShrnutíRozpočtu[[#This Row],[SKUTEČNOST]]","v":{"v":-136,"d":"-136.00"}}]
[null,null,"Celkové výdaje",{"$f":"SUBTOTAL(109,ShrnutíRozpočtu[PŘEDPOKLAD])","v":{"v":17630,"d":"17,630.00"}},{"$f":"SUBTOTAL(109,ShrnutíRozpočtu[SKUTEČNOST])","v":{"v":17374,"d":"17,374.00"}},{"$f":"SUBTOTAL(109,ShrnutíRozpočtu[PŘEKROČENÍ/REZERVA])","v":{"v":256,"d":"256.00"}}]
[]
["Výsečový graf v buňce C19 se aktualizuje automaticky.",null,"V této buňce je výsečový graf znázorňující procentuální podíl jednotlivých kategorií výdajů."]

{"sheet":"Oblečení-Hostina-Hudba-Fotky","index":2,"n_rows":56,"n_cols":6,"rows_kept":56,"merged":[[16,1,16,4],[28,1,28,4],[29,1,29,4],[35,1,35,4],[48,1,48,4]]}
["Do příslušných tabulek na tomto listu zadejte předpoklad a skutečnost náklady v jednotlivých kategorie. Částka překročení nebo rezerva se počítá automaticky. V buňce vpravo je popisek Oblečení. V buňkách v tomto sloupci jsou užitečné pokyny k tomu, jak tento list používat. Začněte stisknutím šipky dolů.","Oblečení",{"$nulls":3}," "]
[" Zadejte podrobnosti do tabulky Oblečení, která začíná v buňce napravo. Další pokyn je v buňce A18.","KATEGORIE","PŘEDPOKLAD","SKUTEČNOST","PŘEKROČENÍ/REZERVA"," "]
[null,"Zásnubní prsteny",{"v":1500,"d":"1,500.00"},{"v":1500,"d":"1,500.00"},{"$f":"'Oblečení-Hostina-Hudba-Fotky'!$C3-'Oblečení-Hostina-Hudba-Fotky'!$D3","v":{"v":0,"d":"0.00"}}]
[null,"Nastávající manžel(ka) 1 – prsten",{"v":2000,"d":"2,000.00"},{"v":2300,"d":"2,300.00"},{"$f":"'Oblečení-Hostina-Hudba-Fotky'!$C4-'Oblečení-Hostina-Hudba-Fotky'!$D4","v":{"v":-300,"d":"-300.00 "}}]
[null,"Nastávající manžel(ka) 1 – šaty nebo oblek",{"v":3000,"d":"3,000.00"},{"v":2750,"d":"2,750.00"},{"$f":"'Oblečení-Hostina-Hudba-Fotky'!$C5-'Oblečení-Hostina-Hudba-Fotky'!$D5","v":{"v":250,"d":"250.00"}}]
[null,"Nastávající manžel(ka) 1 – závoj nebo přikrývka hlavy",{"v":500,"d":"500.00"},{"v":500,"d":"500.00"},{"$f":"'Oblečení-Hostina-Hudba-Fotky'!$C6-'Oblečení-Hostina-Hudba-Fotky'!$D6","v":{"v":0,"d":"0.00"}}]
[null,"Nastávající manžel(ka) 1 – boty",{"v":350,"d":"350.00"},{"v":300,"d":"300.00"},{"$f":"'Oblečení-Hostina-Hudba-Fotky'!$C7-'Oblečení-Hostina-Hudba-Fotky'!$D7","v":{"v":50,"d":"50.00"}}]
[null,"Nastávající manžel(ka) 1 – šperky",{"v":400,"d":"400.00"},{"v":550,"d":"550.00"},{"$f":"'Oblečení-Hostina-Hudba-Fotky'!$C8-'Oblečení-Hostina-Hudba-Fotky'!$D8","v":{"v":-150,"d":"-150.00 "}}]
[null,"Nastávající manžel(ka) 1 – punčochy",{"v":20,"d":"20.00"},{"v":20,"d":"20.00"},{"$f":"'Oblečení-Hostina-Hudba-Fotky'!$C9-'Oblečení-Hostina-Hudba-Fotky'!$D9","v":{"v":0,"d":"0.00"}}]
[null,"Nastávající manžel(ka) 2 – prsten",{"v":300,"d":"300.00"},{"v":250,"d":"250.00"},{"$f":"'Oblečení-Hostina-Hudba-Fotky'!$C10-'Oblečení-Hostina-Hudba-Fotky'!$D10","v":{"v":50,"d":"50.00"}}]
[null,"Nastávající manžel(ka) 2 – šaty nebo oblek",{"v":300,"d":"300.00"},{"v":350,"d":"350.00"},{"$f":"'Oblečení-Hostina-Hudba-Fotky'!$C11-'Oblečení-Hostina-Hudba-Fotky'!$D11","v":{"v":-50,"d":"-50.00 "}}]
[null,"Nastávající manžel(ka) 2 – závoj nebo přikrývka hlavy",{"v":500,"d":"500.00"},{"v":500,"d":"500.00"},{"$f":"'Oblečení-Hostina-Hudba-Fotky'!$C12-'Oblečení-Hostina-Hudba-Fotky'!$D12","v":{"v":0,"d":"0.00"}}]
[null,"Nastávající manžel(ka) 2 – boty",{"v":200,"d":"200.00"},{"v":175,"d":"175.00"},{"$f":"'Oblečení-Hostina-Hudba-Fotky'!$C13-'Oblečení-Hostina-Hudba-Fotky'!$D13","v":{"v":25,"d":"25.00"}}]
[null,"Nastávající manžel(ka) 2 – šperky",{"v":400,"d":"400.00"},{"v":550,"d":"550.00"},{"$f":"'Oblečení-Hostina-Hudba-Fotky'!$C14-'Oblečení-Hostina-Hudba-Fotky'!$D14","v":{"v":-150,"d":"-150.00 "}}]
[null,"Nastávající manžel(ka) 2 – punčochy",{"v":20,"d":"20.00"},{"v":25,"d":"25.00"},{"$f":"'Oblečení-Hostina-Hudba-Fotky'!$C15-'Oblečení-Hostina-Hudba-Fotky'!$D15","v":{"v":-5,"d":"-5.00 "}}]
[null,"Oblečení celkem",{"$f":"SUBTOTAL(109,Oblečení[PŘEDPOKLAD])","v":{"v":9490,"d":"9,490.00"}},{"$f":"SUBTOTAL(109,Oblečení[SKUTEČNOST])","v":{"v":9770,"d":"9,770.00"}},{"$f":"SUBTOTAL(109,Oblečení[PŘEKROČENÍ/REZERVA])","v":{"v":-280,"d":"-280.00 "}}]
[]
["V buňce vpravo je popisek Hostina.","Hostina*"]
["Do tabulky začínající v buňce napravo zadejte náklady na hostinu, s výjimkou nákladů na zábavu a výzdobu. Další pokyn je v buňce A31.","KATEGORIE","PŘEDPOKLAD","SKUTEČNOST","PŘEKROČENÍ/REZERVA"]
[null,"Poplatky za místnost/halu",{"v":200,"d":"200.00"},{"v":150,"d":"150.00"},{"$f":"'Oblečení-Hostina-Hudba-Fotky'!$C20-'Oblečení-Hostina-Hudba-Fotky'!$D20","v":{"v":50,"d":"50.00"}}]
[null,"Stoly a židle",{"v":100,"d":"100.00"},{"v":50,"d":"50.00"},{"$f":"'Oblečení-Hostina-Hudba-Fotky'!$C21-'Oblečení-Hostina-Hudba-Fotky'!$D21","v":{"v":50,"d":"50.00"}}]
[null,"Jídlo",{"v":0,"d":"0.00"},{"v":0,"d":"0.00"},{"$f":"'Oblečení-Hostina-Hudba-Fotky'!$C22-'Oblečení-Hostina-Hudba-Fotky'!$D22","v":{"v":0,"d":"0.00"}}]
[null,"Nápoje",{"v":0,"d":"0.00"},{"v":0,"d":"0.00"},{"$f":"'Oblečení-Hostina-Hudba-Fotky'!$C23-'Oblečení-Hostina-Hudba-Fotky'!$D23","v":{"v":0,"d":"0.00"}}]
[null,"Ubrusy",{"v":0,"d":"0.00"},{"v":0,"d":"0.00"},{"$f":"'Oblečení-Hostina-Hudba-Fotky'!$C24-'Oblečení-Hostina-Hudba-Fotky'!$D24","v":{"v":0,"d":"0.00"}}]
[null,"Dort",{"v":700,"d":"700.00"},{"v":700,"d":"700.00"},{"$f":"'Oblečení-Hostina-Hudba-Fotky'!$C25-'Oblečení-Hostina-Hudba-Fotky'!$D25","v":{"v":0,"d":"0.00"}}]
[null,"Suvenýry",{"v":50,"d":"50.00"},{"v":28,"d":"28.00"},{"$f":"'Oblečení-Hostina-Hudba-Fotky'!$C26-'Oblečení-Hostina-Hudba-Fotky'!$D26","v":{"v":22,"d":"22.00"}}]
[null,"Zaměstnanci a spropitné",{"v":0,"d":"0.00"},{"v":0,"d":"0.00"},{"$f":"'Oblečení-Hostina-Hudba-Fotky'!$C27-'Oblečení-Hostina-Hudba-Fotky'!$D27","v":{"v":0,"d":"0.00"}}]
[null,"Hostina celkem",{"$f":"SUBTOTAL(109,Hostina[PŘEDPOKLAD])","v":{"v":1050,"d":"1,050.00"}},{"$f":"SUBTOTAL(109,Hostina[SKUTEČNOST])","v":{"v":928,"d":"928.00"}},{"$f":"SUBTOTAL(109,Hostina[PŘEKROČENÍ/REZERVA])","v":{"v":122,"d":"122.00"}}]
[null,"* Nezahrnuje zábavu a výzdobu."]
[]
["V buňce vpravo je popisek Hudba/zábava.","Hudba/zábava"]
["Zadejte podrobnosti do tabulky Hudba, která začíná v buňce napravo. Další pokyn je v buňce A37.","KATEGORIE","PŘEDPOKLAD","SKUTEČNOST","PŘEKROČENÍ/REZERVA"]
[null,"Hudebníci na obřad",{"v":400,"d":"400.00"},{"v":400,"d":"400.00"},{"$f":"'Oblečení-Hostina-Hudba-Fotky'!$C33-'Oblečení-Hostina-Hudba-Fotky'!$D33","v":{"v":0,"d":"0.00"}}]
[null,"Skupina nebo DJ na hostinu",{"v":200,"d":"200.00"},{"v":0,"d":"0.00"},{"$f":"'Oblečení-Hostina-Hudba-Fotky'!$C34-'Oblečení-Hostina-Hudba-Fotky'!$D34","v":{"v":200,"d":"200.00"}}]
[null,"Hudba/zábava celkem",{"$f":"SUBTOTAL(109,Hudba[PŘEDPOKLAD])","v":{"v":600,"d":"600.00"}},{"$f":"SUBTOTAL(109,Hudba[SKUTEČNOST])","v":{"v":400,"d":"400.00"}},{"$f":"SUBTOTAL(109,Hudba[PŘEKROČENÍ/REZERVA])","v":{"v":200,"d":"200.00"}}]
[]
["V buňce vpravo je popisek Tisk/papírnictví.","Tisk/papírnictví"]
["Zadejte podrobnosti do tabulky Tisk, která začíná v buňce napravo. Další pokyn je v buňce A50.","KATEGORIE","PŘEDPOKLAD","SKUTEČNOST","PŘEKROČENÍ/REZERVA"]
[null,"Pozvánky",{"v":500,"d":"500.00"},{"v":450,"d":"450.00"},{"$f":"'Oblečení-Hostina-Hudba-Fotky'!$C39-'Oblečení-Hostina-Hudba-Fotky'!$D39","v":{"v":50,"d":"50.00"}}]
[null,"Oznámení",{"v":200,"d":"200.00"},{"v":175,"d":"175.00"},{"$f":"'Oblečení-Hostina-Hudba-Fotky'!$C40-'Oblečení-Hostina-Hudba-Fotky'!$D40","v":{"v":25,"d":"25.00"}}]
[null,"Děkovné kartičky",{"v":100,"d":"100.00"},{"v":100,"d":"100.00"},{"$f":"'Oblečení-Hostina-Hudba-Fotky'!$C41-'Oblečení-Hostina-Hudba-Fotky'!$D41","v":{"v":0,"d":"0.00"}}]
[null,"Osobní dopisy",{"v":0,"d":"0.00"},{"v":0,"d":"0.00"},{"$f":"'Oblečení-Hostina-Hudba-Fotky'!$C42-'Oblečení-Hostina-Hudba-Fotky'!$D42","v":{"v":0,"d":"0.00"}}]
[null,"Kniha hostů",{"v":25,"d":"25.00"},{"v":25,"d":"25.00"},{"$f":"'Oblečení-Hostina-Hudba-Fotky'!$C43-'Oblečení-Hostina-Hudba-Fotky'!$D43","v":{"v":0,"d":"0.00"}}]
[null,"Programy",{"v":75,"d":"75.00"},{"v":80,"d":"80.00"},{"$f":"'Oblečení-Hostina-Hudba-Fotky'!$C44-'Oblečení-Hostina-Hudba-Fotky'!$D44","v":{"v":-5,"d":"-5.00 "}}]
[null,"Ubrousky na hostinu",{"v":35,"d":"35.00"},{"v":40,"d":"40.00"},{"$f":"'Oblečení-Hostina-Hudba-Fotky'!$C45-'Oblečení-Hostina-Hudba-Fotky'!$D45","v":{"v":-5,"d":"-5.00 "}}]
[null,"Kartičky a knížečky",{"v":0,"d":"0.00"},{"v":0,"d":"0.00"},{"$f":"'Oblečení-Hostina-Hudba-Fotky'!$C46-'Oblečení-Hostina-Hudba-Fotky'!$D46","v":{"v":0,"d":"0.00"}}]
[null,"Kaligrafie",{"v":0,"d":"0.00"},{"v":0,"d":"0.00"},{"$f":"'Oblečení-Hostina-Hudba-Fotky'!$C47-'Oblečení-Hostina-Hudba-Fotky'!$D47","v":{"v":0,"d":"0.00"}}]
[null,"Tisk/papírnictví celkem",{"$f":"SUBTOTAL(109,Tisk[PŘEDPOKLAD])","v":{"v":935,"d":"935.00"}},{"$f":"SUBTOTAL(109,Tisk[SKUTEČNOST])","v":{"v":870,"d":"870.00"}},{"$f":"SUBTOTAL(109,Tisk[PŘEKROČENÍ/REZERVA])","v":{"v":65,"d":"65.00"}}]
[]
["V buňce vpravo je popisek Fotky.","Fotky"]
["Zadejte podrobnosti do tabulky Fotky, která začíná v buňce napravo.","KATEGORIE","PŘEDPOKLAD","SKUTEČNOST","PŘEKROČENÍ/REZERVA"]
[null,"Formální",{"v":1300,"d":"1,300.00"},{"v":1300,"d":"1,300.00"},{"$f":"'Oblečení-Hostina-Hudba-Fotky'!$C52-'Oblečení-Hostina-Hudba-Fotky'!$D52","v":{"v":0,"d":"0.00"}}]
[null,"Kopie navíc",{"v":25,"d":"25.00"},{"v":25,"d":"25.00"},{"$f":"'Oblečení-Hostina-Hudba-Fotky'!$C53-'Oblečení-Hostina-Hudba-Fotky'!$D53","v":{"v":0,"d":"0.00"}}]
[null,"Fotoalba",{"v":100,"d":"100.00"},{"v":100,"d":"100.00"},{"$f":"'Oblečení-Hostina-Hudba-Fotky'!$C54-'Oblečení-Hostina-Hudba-Fotky'!$D54","v":{"v":0,"d":"0.00"}}]
[null,"Video",{"v":200,"d":"200.00"},{"v":150,"d":"150.00"},{"$f":"'Oblečení-Hostina-Hudba-Fotky'!$C55-'Oblečení-Hostina-Hudba-Fotky'!$D55","v":{"v":50,"d":"50.00"}}]
[null,"Fotky celkem",{"$f":"SUBTOTAL(109,Fotky[PŘEDPOKLAD])","v":{"v":1625,"d":"1,625.00"}},{"$f":"SUBTOTAL(109,Fotky[SKUTEČNOST])","v":{"v":1575,"d":"1,575.00"}},{"$f":"SUBTOTAL(109,Fotky[PŘEKROČENÍ/REZERVA])","v":{"v":50,"d":"50.00"}}]

{"sheet":"Výzdoba-Květiny-Dárky-Cestování","index":3,"n_rows":48,"n_cols":5,"rows_kept":48,"merged":[[8,1,8,4],[9,1,9,4],[18,1,18,4],[27,1,27,4],[34,1,34,4]]}
["Do příslušných tabulek na tomto listu zadejte předpoklad a skutečnost náklady v jednotlivých kategorie. Částka překročení nebo rezerva se počítá automaticky. V buňce vpravo je popisek Výzdoba. V buňkách v tomto sloupci jsou užitečné pokyny k tomu, jak tento list používat. Začněte stisknutím šipky dolů.","Výzdoba*"]
["Do tabulky začínající v buňce napravo zadejte náklady na výzdobu, s výjimkou nákladů na květiny. Další pokyn je v buňce A11.","KATEGORIE","PŘEDPOKLAD","SKUTEČNOST","PŘEKROČENÍ/REZERVA"]
[null,"Mašle na sedadla",{"v":0,"d":"0.00"},{"v":0,"d":"0.00"},{"$f":"'Výzdoba-Květiny-Dárky-Cestování'!$C3-'Výzdoba-Květiny-Dárky-Cestování'!$D3","v":{"v":0,"d":"0.00"}}]
[null,"Výzdoba stolů",{"v":300,"d":"300.00"},{"v":320,"d":"320.00"},{"$f":"'Výzdoba-Květiny-Dárky-Cestování'!$C4-'Výzdoba-Květiny-Dárky-Cestování'!$D4","v":{"v":-20,"d":"-20.00 "}}]
[null,"Svíčky",{"v":100,"d":"100.00"},{"v":75,"d":"75.00"},{"$f":"'Výzdoba-Květiny-Dárky-Cestování'!$C5-'Výzdoba-Květiny-Dárky-Cestování'!$D5","v":{"v":25,"d":"25.00"}}]
[null,"Osvětlení",{"v":100,"d":"100.00"},{"v":75,"d":"75.00"},{"$f":"'Výzdoba-Květiny-Dárky-Cestování'!$C6-'Výzdoba-Květiny-Dárky-Cestování'!$D6","v":{"v":25,"d":"25.00"}}]
[null,"Balonky",{"v":200,"d":"200.00"},{"v":250,"d":"250.00"},{"$f":"'Výzdoba-Květiny-Dárky-Cestování'!$C7-'Výzdoba-Květiny-Dárky-Cestování'!$D7","v":{"v":-50,"d":"-50.00 "}}]
[null,"Výzdoba celkem",{"$f":"SUBTOTAL(109,Výzdoba[PŘEDPOKLAD])","v":{"v":700,"d":"700.00"}},{"$f":"SUBTOTAL(109,Výzdoba[SKUTEČNOST])","v":{"v":720,"d":"720.00"}},{"$f":"SUBTOTAL(109,Výzdoba[PŘEKROČENÍ/REZERVA])","v":{"v":-20,"d":"-20.00 "}}]
[null,"* Nezahrnuje květiny."]
[]
["V buňce vpravo je popisek Květiny.","Květiny"]
["Zadejte podrobnosti do tabulky Květiny, která začíná v buňce napravo. Další pokyn je v buňce A20.","KATEGORIE","PŘEDPOKLAD","SKUTEČNOST","PŘEKROČENÍ/REZERVA"]
[null,"Aranžované květiny",{"v":500,"d":"500.00"},{"v":450,"d":"450.00"},{"$f":"'Výzdoba-Květiny-Dárky-Cestování'!$C13-'Výzdoba-Květiny-Dárky-Cestování'!$D13","v":{"v":50,"d":"50.00"}}]
[null,"Kytičky na klopy",{"v":0,"d":"0.00"},{"v":0,"d":"0.00"},{"$f":"'Výzdoba-Květiny-Dárky-Cestování'!$C14-'Výzdoba-Květiny-Dárky-Cestování'!$D14","v":{"v":0,"d":"0.00"}}]
[null,"Květiny na šaty",{"v":0,"d":"0.00"},{"v":0,"d":"0.00"},{"$f":"'Výzdoba-Květiny-Dárky-Cestování'!$C15-'Výzdoba-Květiny-Dárky-Cestování'!$D15","v":{"v":0,"d":"0.00"}}]
[null,"Obřad",{"v":400,"d":"400.00"},{"v":400,"d":"400.00"},{"$f":"'Výzdoba-Květiny-Dárky-Cestování'!$C16-'Výzdoba-Květiny-Dárky-Cestování'!$D16","v":{"v":0,"d":"0.00"}}]
[null,"Hostina",{"v":0,"d":"0.00"},{"v":0,"d":"0.00"},{"$f":"'Výzdoba-Květiny-Dárky-Cestování'!$C17-'Výzdoba-Květiny-Dárky-Cestování'!$D17","v":{"v":0,"d":"0.00"}}]
[null,"Květiny celkem",{"$f":"SUBTOTAL(109,Květiny[PŘEDPOKLAD])","v":{"v":900,"d":"900.00"}},{"$f":"SUBTOTAL(109,Květiny[SKUTEČNOST])","v":{"v":850,"d":"850.00"}},{"$f":"SUBTOTAL(109,Květiny[PŘEKROČENÍ/REZERVA])","v":{"v":50,"d":"50.00"}}]
[]
["V buňce vpravo je popisek Dárky.","Dárky"]
["Zadejte podrobnosti do tabulky Dárky, která začíná v buňce napravo. Další pokyn je v buňce A29.","KATEGORIE","PŘEDPOKLAD","SKUTEČNOST","PŘEKROČENÍ/REZERVA"]
[null,"Účastníci",{"v":1000,"d":"1,000.00"},{"v":400,"d":"400.00"},{"$f":"'Výzdoba-Květiny-Dárky-Cestování'!$C22-'Výzdoba-Květiny-Dárky-Cestování'!$D22","v":{"v":600,"d":"600.00"}}]
[null,"Nastávající manžel(ka) 1",{"v":150,"d":"150.00"},{"v":200,"d":"200.00"},{"$f":"'Výzdoba-Květiny-Dárky-Cestování'!$C23-'Výzdoba-Květiny-Dárky-Cestování'!$D23","v":{"v":-50,"d":"-50.00 "}}]
[null,"Nastávající manžel(ka) 2",{"v":150,"d":"150.00"},{"v":200,"d":"200.00"},{"$f":"'Výzdoba-Květiny-Dárky-Cestování'!$C24-'Výzdoba-Květiny-Dárky-Cestování'!$D24","v":{"v":-50,"d":"-50.00 "}}]
[null,"Rodiče",{"v":25,"d":"25.00"},{"v":25,"d":"25.00"},{"$f":"'Výzdoba-Květiny-Dárky-Cestování'!$C25-'Výzdoba-Květiny-Dárky-Cestování'!$D25","v":{"v":0,"d":"0.00"}}]
[null,"Mluvčí / jiní účastníci",{"v":20,"d":"20.00"},{"v":250,"d":"250.00"},{"$f":"'Výzdoba-Květiny-Dárky-Cestování'!$C26-'Výzdoba-Květiny-Dárky-Cestování'!$D26","v":{"v":-230,"d":"-230.00 "}}]
[null,"Dárky celkem",{"$f":"SUBTOTAL(109,Dárky[PŘEDPOKLAD])","v":{"v":1345,"d":"1,345.00"}},{"$f":"SUBTOTAL(109,Dárky[SKUTEČNOST])","v":{"v":1075,"d":"1,075.00"}},{"$f":"SUBTOTAL(109,Dárky[PŘEKROČENÍ/REZERVA])","v":{"v":270,"d":"270.00"}}]
[]
["V buňce vpravo je popisek Cestování/doprava.","Cestování/doprava"]
["Zadejte podrobnosti do tabulky Cestování, která začíná v buňce napravo. Další pokyn je v buňce A36.","KATEGORIE","PŘEDPOKLAD","SKUTEČNOST","PŘEKROČENÍ/REZERVA"]
[null,"Limuzíny/vozíky",{"v":100,"d":"100.00"},{"v":125,"d":"125.00"},{"$f":"'Výzdoba-Květiny-Dárky-Cestování'!$C31-'Výzdoba-Květiny-Dárky-Cestování'!$D31","v":{"v":-25,"d":"-25.00 "}}]
[null,"Parkování",{"v":0,"d":"0.00"},{"v":40,"d":"40.00"},{"$f":"'Výzdoba-Květiny-Dárky-Cestování'!$C32-'Výzdoba-Květiny-Dárky-Cestování'!$D32","v":{"v":-40,"d":"-40.00 "}}]
[null,"Taxi",{"v":0,"d":"0.00"},{"v":0,"d":"0.00"},{"$f":"'Výzdoba-Květiny-Dárky-Cestování'!$C33-'Výzdoba-Květiny-Dárky-Cestování'!$D33","v":{"v":0,"d":"0.00"}}]
[null,"Cestování/doprava celkem",{"$f":"SUBTOTAL(109,Cestování[PŘEDPOKLAD])","v":{"v":100,"d":"100.00"}},{"$f":"SUBTOTAL(109,Cestování[SKUTEČNOST])","v":{"v":165,"d":"165.00"}},{"$f":"SUBTOTAL(109,Cestování[PŘEKROČENÍ/REZERVA])","v":{"v":-65,"d":"-65.00 "}}]
[]
["V buňce vpravo je popisek Jiné výdaje.","Jiné výdaje"]
["Zadejte podrobnosti do tabulky Jiné výdaje, která začíná v buňce napravo.","KATEGORIE","PŘEDPOKLAD","SKUTEČNOST","PŘEKROČENÍ/REZERVA"]
[null,"Kněz",{"v":0,"d":"0.00"},{"v":0,"d":"0.00"},{"$f":"'Výzdoba-Květiny-Dárky-Cestování'!$C38-'Výzdoba-Květiny-Dárky-Cestování'!$D38","v":{"v":0,"d":"0.00"}}]
[null,"Poplatek za kostel nebo místo obřadu",{"v":40,"d":"40.00"},{"v":55,"d":"55.00"},{"$f":"'Výzdoba-Květiny-Dárky-Cestování'!$C39-'Výzdoba-Květiny-Dárky-Cestování'!$D39","v":{"v":-15,"d":"-15.00 "}}]
[null,"Koordinátor svatby",{"v":0,"d":"0.00"},{"v":0,"d":"0.00"},{"$f":"'Výzdoba-Květiny-Dárky-Cestování'!$C40-'Výzdoba-Květiny-Dárky-Cestování'!$D40","v":{"v":0,"d":"0.00"}}]
[null,"Předsvatební hostina",{"v":450,"d":"450.00"},{"v":450,"d":"450.00"},{"$f":"'Výzdoba-Květiny-Dárky-Cestování'!$C41-'Výzdoba-Květiny-Dárky-Cestování'!$D41","v":{"v":0,"d":"0.00"}}]
[null,"Zásnubní večírek",{"v":20,"d":"20.00"},{"v":50,"d":"50.00"},{"$f":"'Výzdoba-Květiny-Dárky-Cestování'!$C42-'Výzdoba-Květiny-Dárky-Cestování'!$D42","v":{"v":-30,"d":"-30.00 "}}]
[null,"Večírky s dárky",{"v":30,"d":"30.00"},{"v":20,"d":"20.00"},{"$f":"'Výzdoba-Květiny-Dárky-Cestování'!$C43-'Výzdoba-Květiny-Dárky-Cestování'!$D43","v":{"v":10,"d":"10.00"}}]
[null,"Návštěvy svatebního salonu",{"v":45,"d":"45.00"},{"v":46,"d":"46.00"},{"$f":"'Výzdoba-Květiny-Dárky-Cestování'!$C44-'Výzdoba-Květiny-Dárky-Cestování'!$D44","v":{"v":-1,"d":"-1.00 "}}]
[null,"Rozlučky se svobodou",{"v":0,"d":"0.00"},{"v":0,"d":"0.00"},{"$f":"'Výzdoba-Květiny-Dárky-Cestování'!$C45-'Výzdoba-Květiny-Dárky-Cestování'!$D45","v":{"v":0,"d":"0.00"}}]
[null,"Svačina",{"v":300,"d":"300.00"},{"v":400,"d":"400.00"},{"$f":"'Výzdoba-Květiny-Dárky-Cestování'!$C46-'Výzdoba-Květiny-Dárky-Cestování'!$D46","v":{"v":-100,"d":"-100.00 "}}]
[null,"Hotelové pokoje",{"v":0,"d":"0.00"},{"v":0,"d":"0.00"},{"$f":"'Výzdoba-Květiny-Dárky-Cestování'!$C47-'Výzdoba-Květiny-Dárky-Cestování'!$D47","v":{"v":0,"d":"0.00"}}]
[null,"Jiné výdaje celkem",{"$f":"SUBTOTAL(109,JinéVýdaje[PŘEDPOKLAD])","v":{"v":885,"d":"885.00"}},{"$f":"SUBTOTAL(109,JinéVýdaje[SKUTEČNOST])","v":{"v":1021,"d":"1,021.00"}},{"$f":"SUBTOTAL(109,JinéVýdaje[PŘEKROČENÍ/REZERVA])","v":{"v":-136,"d":"-136.00 "}}]